[Event "Titled Tuesday Blitz May 16 Early 2023"]
[White "Seemann, Jakub"]
[Black "Yurasova, Daria"]
[WhiteFideId "21874697"]
[BlackFideId "34146919"]
[WhiteElo "2364"]
[BlackElo "2109"]
[Result "1-0"]
[Round "04"]
[TimeControl "180+2"]
[Date "2023.05.16"]
[WhiteClock "0:00:13"]
[BlackClock "0:00:16"]

1. g3 {[%clk 0:03:00]}  d5 {[%clk 0:02:59]} 2. Bg2 {[%clk 0:03:01]}  c6 {[%clk 0:02:59]} 3. Nf3 {[%clk 0:03:02]}  Nf6 {[%clk 0:03:00]} 4. O-O {[%clk 0:03:02]}  Bf5 {[%clk 0:03:00]} 5. b3 {[%clk 0:03:03]}  e6 {[%clk 0:03:00]} 6. Bb2 {[%clk 0:03:03]}  Be7 {[%clk 0:03:01]} 7. c4 {[%clk 0:03:01]}  h6 {[%clk 0:03:01]} 8. d3 {[%clk 0:03:00]}  O-O {[%clk 0:03:01]} 9. Nbd2 {[%clk 0:03:01]}  Bh7 {[%clk 0:03:02]} 10. Ne5 {[%clk 0:02:54]}  Nbd7 {[%clk 0:03:02]} 11. Nxd7 {[%clk 0:02:54]}  Qxd7 {[%clk 0:03:03]} 12. Nf3 {[%clk 0:02:54]}  a5 {[%clk 0:03:02]} 13. Ne5 {[%clk 0:02:53]}  Qc7 {[%clk 0:03:02]} 14. a3 {[%clk 0:02:53]}  Rfd8 {[%clk 0:03:00]} 15. Qc2 {[%clk 0:02:52]}  Rac8 {[%clk 0:03:00]} 16. Rfd1 {[%clk 0:02:43]}  dxc4 {[%clk 0:02:52]} 17. Qxc4 {[%clk 0:02:42]}  Nd5 {[%clk 0:02:47]} 18. Rac1 {[%clk 0:02:42]}  Bf6 {[%clk 0:02:43]} 19. d4 {[%clk 0:02:41]}  Bxe5 {[%clk 0:02:37]} 20. dxe5 {[%clk 0:02:41]}  Nb6 {[%clk 0:02:31]} 21. Qc5 {[%clk 0:02:41]}  Rxd1+ {[%clk 0:02:23]} 22. Rxd1 {[%clk 0:02:40]}  Rd8 {[%clk 0:02:18]} 23. Rxd8+ {[%clk 0:02:37]}  Qxd8 {[%clk 0:02:18]} 24. Qxa5 {[%clk 0:02:31]}  Bf5 {[%clk 0:01:55]} 25. Qe1 {[%clk 0:02:10]}  Bc2 {[%clk 0:01:49]} 26. h4 {[%clk 0:01:58]}  Bxb3 {[%clk 0:01:43]} 27. Qb4 {[%clk 0:01:56]}  Qd1+ {[%clk 0:01:43]} 28. Kh2 {[%clk 0:01:56]}  Nc4 {[%clk 0:01:32]} 29. Bc3 {[%clk 0:01:28]}  Qc2 {[%clk 0:01:33]} 30. Bd4 {[%clk 0:01:10]}  Qd2 {[%clk 0:01:06]} 31. Qxb3 {[%clk 0:00:58]}  Qxd4 {[%clk 0:01:06]} 32. Qxb7 {[%clk 0:00:58]}  Qxf2 {[%clk 0:00:55]} 33. Qxc6 {[%clk 0:00:44]}  Ne3 {[%clk 0:00:55]} 34. Qa8+ {[%clk 0:00:43]}  Kh7 {[%clk 0:00:54]} 35. Qe4+ {[%clk 0:00:41]}  g6 {[%clk 0:00:54]} 36. Qf3 {[%clk 0:00:41]}  Qxf3 {[%clk 0:00:22]} 37. Bxf3 {[%clk 0:00:40]}  Nc4 {[%clk 0:00:23]} 38. a4 {[%clk 0:00:40]}  Kg8 {[%clk 0:00:20]} 39. Bc6 {[%clk 0:00:27]}  Kf8 {[%clk 0:00:19]} 40. Bb5 {[%clk 0:00:27]}  Na5 {[%clk 0:00:20]} 41. Kg2 {[%clk 0:00:25]}  Ke7 {[%clk 0:00:21]} 42. Kf3 {[%clk 0:00:25]}  Kd8 {[%clk 0:00:22]} 43. Ke4 {[%clk 0:00:24]}  Kc7 {[%clk 0:00:21]} 44. Be8 {[%clk 0:00:24]}  g5 {[%clk 0:00:17]} 45. Bxf7 {[%clk 0:00:24]}  gxh4 {[%clk 0:00:17]} 46. gxh4 {[%clk 0:00:23]}  Kd7 {[%clk 0:00:18]} 47. Kf4 {[%clk 0:00:20]}  Nc4 {[%clk 0:00:17]} 48. Bg6 {[%clk 0:00:20]}  Kc7 {[%clk 0:00:16]} 49. Bd3 {[%clk 0:00:20]}  Nb2 {[%clk 0:00:16]} 50. Bb5 {[%clk 0:00:20]}  Nd1 {[%clk 0:00:16]} 51. Kg4 {[%clk 0:00:19]}  Nc3 {[%clk 0:00:17]} 52. e3 {[%clk 0:00:17]}  Nd1 {[%clk 0:00:16]} 53. Kf3 {[%clk 0:00:17]}  Nc3 {[%clk 0:00:16]} 54. Kf4 {[%clk 0:00:17]}  Nd1 {[%clk 0:00:16]} 55. a5 {[%clk 0:00:14]}  Kb7 {[%clk 0:00:16]} 56. a6+ {[%clk 0:00:14]}  Kb6 {[%clk 0:00:16]} 57. Bc4 {[%clk 0:00:14]}  Nc3 {[%clk 0:00:14]} 58. Kg4 {[%clk 0:00:14]}  Na4 {[%clk 0:00:13]} 59. Kh5 {[%clk 0:00:13]}  Kc5 {[%clk 0:00:13]} 60. a7 {[%clk 0:00:12]}  Nb6 {[%clk 0:00:13]} 61. Bxe6 {[%clk 0:00:13]}  Kc6 {[%clk 0:00:13]} 62. Kxh6 {[%clk 0:00:13]}  Kc7 {[%clk 0:00:14]} 63. Kg7 {[%clk 0:00:12]}  Kd8 {[%clk 0:00:15]} 64. h5 {[%clk 0:00:12]}  Ke7 {[%clk 0:00:16]} 65. h6 {[%clk 0:00:12]}  Kxe6 {[%clk 0:00:16]} 66. h7 {[%clk 0:00:13]}  Kxe5 {[%clk 0:00:16]} 67. h8=Q {[%clk 0:00:13]}  Ke4 {[%clk 0:00:16]} 68. Qb8 {[%clk 0:00:13]} 1-0


[Site "https://www.chess.com"]

[Event "Titled Tuesday Blitz May 16 Early 2023"]
[White "Volkov, Maksim"]
[Black "Chernov, Mikhail"]
[WhiteFideId "54123070"]
[BlackFideId "24143170"]
[WhiteElo "2297"]
[BlackElo "2113"]
[Result "1-0"]
[Round "04"]
[TimeControl "180+2"]
[Date "2023.05.16"]
[WhiteClock "0:01:14"]
[BlackClock "0:00:02"]

1. d4 {[%clk 0:03:00]}  d5 {[%clk 0:02:58]} 2. c4 {[%clk 0:03:01]}  c6 {[%clk 0:02:57]} 3. Nf3 {[%clk 0:03:01]}  Nf6 {[%clk 0:02:56]} 4. g3 {[%clk 0:03:02]}  Bf5 {[%clk 0:02:53]} 5. Nc3 {[%clk 0:03:01]}  e6 {[%clk 0:02:52]} 6. Nh4 {[%clk 0:02:59]}  Bg6 {[%clk 0:02:51]} 7. Nxg6 {[%clk 0:02:57]}  hxg6 {[%clk 0:02:52]} 8. Qd3 {[%clk 0:02:57]}  Nbd7 {[%clk 0:02:51]} 9. Bg2 {[%clk 0:02:57]}  Bd6 {[%clk 0:02:28]} 10. O-O {[%clk 0:02:56]}  O-O {[%clk 0:02:28]} 11. Rd1 {[%clk 0:02:56]}  Qe7 {[%clk 0:02:27]} 12. b3 {[%clk 0:02:42]}  Rad8 {[%clk 0:02:13]} 13. Bb2 {[%clk 0:02:41]}  Ba3 {[%clk 0:02:08]} 14. Bxa3 {[%clk 0:02:35]}  Qxa3 {[%clk 0:02:08]} 15. c5 {[%clk 0:02:36]}  e5 {[%clk 0:02:05]} 16. e3 {[%clk 0:02:32]}  Rfe8 {[%clk 0:02:01]} 17. Rab1 {[%clk 0:02:22]}  exd4 {[%clk 0:01:39]} 18. exd4 {[%clk 0:02:22]}  Qa5 {[%clk 0:01:32]} 19. b4 {[%clk 0:02:20]}  Qc7 {[%clk 0:01:32]} 20. b5 {[%clk 0:02:20]}  Re7 {[%clk 0:01:26]} 21. Rb2 {[%clk 0:02:18]}  Rde8 {[%clk 0:01:25]} 22. Rdb1 {[%clk 0:02:17]}  Re1+ {[%clk 0:01:23]} 23. Bf1 {[%clk 0:02:17]}  Rxb1 {[%clk 0:01:19]} 24. Rxb1 {[%clk 0:02:09]}  Ne4 {[%clk 0:01:16]} 25. Nd1 {[%clk 0:02:00]}  Qa5 {[%clk 0:01:05]} 26. Rb2 {[%clk 0:01:40]}  f5 {[%clk 0:00:35]} 27. Re2 {[%clk 0:01:33]}  Qxb5 {[%clk 0:00:30]} 28. Qxb5 {[%clk 0:01:32]}  cxb5 {[%clk 0:00:31]} 29. f3 {[%clk 0:01:33]}  Nef6 {[%clk 0:00:31]} 30. Rxe8+ {[%clk 0:01:34]}  Nxe8 {[%clk 0:00:32]} 31. Bxb5 {[%clk 0:01:35]}  Ndf6 {[%clk 0:00:28]} 32. Nc3 {[%clk 0:01:34]}  Kf7 {[%clk 0:00:27]} 33. Kf2 {[%clk 0:01:32]}  Nc7 {[%clk 0:00:27]} 34. Ba4 {[%clk 0:01:32]}  Ke7 {[%clk 0:00:23]} 35. Ke3 {[%clk 0:01:31]}  g5 {[%clk 0:00:22]} 36. Bb3 {[%clk 0:01:29]}  g6 {[%clk 0:00:20]} 37. a4 {[%clk 0:01:27]}  Kd7 {[%clk 0:00:19]} 38. Nb5 {[%clk 0:01:26]}  Nxb5 {[%clk 0:00:19]} 39. axb5 {[%clk 0:01:26]}  a5 {[%clk 0:00:19]} 40. b6 {[%clk 0:01:19]}  Ke6 {[%clk 0:00:17]} 41. Ba4 {[%clk 0:01:18]}  f4+ {[%clk 0:00:07]} 42. gxf4 {[%clk 0:01:18]}  gxf4+ {[%clk 0:00:08]} 43. Kxf4 {[%clk 0:01:17]}  Nd7 {[%clk 0:00:02]} 44. Kg5 {[%clk 0:01:14]} 1-0


[Site "https://www.chess.com"]

[Event "Titled Tuesday Blitz May 16 Early 2023"]
[White "MKlose11"]
[Black "Devaev, Alexander"]
[BlackFideId "4169395"]
[WhiteElo "2666"]
[BlackElo "2172"]
[Result "1-0"]
[Round "04"]
[TimeControl "180+2"]
[Date "2023.05.16"]
[WhiteClock "0:02:16"]
[BlackClock "0:00:00"]

1. e4 {[%clk 0:03:00]}  c6 {[%clk 0:02:59]} 2. Nc3 {[%clk 0:03:00]}  d5 {[%clk 0:03:00]} 3. g3 {[%clk 0:03:01]}  d4 {[%clk 0:02:58]} 4. Nce2 {[%clk 0:03:00]}  e5 {[%clk 0:02:58]} 5. d3 {[%clk 0:03:00]}  c5 {[%clk 0:02:58]} 6. f4 {[%clk 0:03:00]}  Nc6 {[%clk 0:02:58]} 7. Bg2 {[%clk 0:03:00]}  Bg4 {[%clk 0:02:40]} 8. Nf3 {[%clk 0:03:00]}  Bd6 {[%clk 0:02:39]} 9. O-O {[%clk 0:03:00]}  Qc7 {[%clk 0:02:39]} 10. h3 {[%clk 0:03:00]}  Be6 {[%clk 0:02:24]} 11. Ng5 {[%clk 0:02:59]}  Qc8 {[%clk 0:02:00]} 12. Kh2 {[%clk 0:02:52]}  Bd7 {[%clk 0:01:56]} 13. Nxf7 {[%clk 0:02:48]}  Kxf7 {[%clk 0:01:54]} 14. fxe5+ {[%clk 0:02:48]}  Ke8 {[%clk 0:01:51]} 15. exd6 {[%clk 0:02:48]}  Nf6 {[%clk 0:01:52]} 16. Bg5 {[%clk 0:02:30]}  Rf8 {[%clk 0:01:44]} 17. Nf4 {[%clk 0:02:27]}  Ne5 {[%clk 0:01:40]} 18. Bxf6 {[%clk 0:02:27]}  Rxf6 {[%clk 0:01:39]} 19. Nd5 {[%clk 0:02:27]}  Rh6 {[%clk 0:01:36]} 20. Nc7+ {[%clk 0:02:16]}  Kd8 {[%clk 0:00:00]} 21. Rf8+ {[%clk 0:02:16]} 1-0


[Site "https://www.chess.com"]

[Event "Titled Tuesday Blitz May 16 Early 2023"]
[White "Florescu, Codrut-Constantin"]
[Black "Bogaudinov, Rushan"]
[WhiteFideId "1202200"]
[BlackFideId "4129288"]
[WhiteElo "2191"]
[BlackElo "1941"]
[Result "0-1"]
[Round "04"]
[TimeControl "180+2"]
[Date "2023.05.16"]
[WhiteClock "0:00:02"]
[BlackClock "0:00:12"]

1. c4 {[%clk 0:03:00]}  e5 {[%clk 0:02:59]} 2. Nc3 {[%clk 0:03:00]}  Nc6 {[%clk 0:02:59]} 3. g3 {[%clk 0:03:00]}  g6 {[%clk 0:02:58]} 4. Bg2 {[%clk 0:03:00]}  Bg7 {[%clk 0:02:58]} 5. d3 {[%clk 0:03:00]}  Nge7 {[%clk 0:02:57]} 6. Nf3 {[%clk 0:02:59]}  O-O {[%clk 0:02:57]} 7. O-O {[%clk 0:03:00]}  d6 {[%clk 0:02:53]} 8. Rb1 {[%clk 0:02:59]}  a5 {[%clk 0:02:53]} 9. a3 {[%clk 0:02:59]}  Bg4 {[%clk 0:02:43]} 10. Nd2 {[%clk 0:02:54]}  Rb8 {[%clk 0:02:40]} 11. h3 {[%clk 0:02:38]}  Be6 {[%clk 0:02:38]} 12. b4 {[%clk 0:02:35]}  axb4 {[%clk 0:02:35]} 13. axb4 {[%clk 0:02:35]}  Qd7 {[%clk 0:02:27]} 14. Kh2 {[%clk 0:02:35]}  f5 {[%clk 0:02:22]} 15. b5 {[%clk 0:02:34]}  Nd8 {[%clk 0:02:20]} 16. Nd5 {[%clk 0:02:31]}  f4 {[%clk 0:02:09]} 17. Ne4 {[%clk 0:02:29]}  Nxd5 {[%clk 0:02:00]} 18. cxd5 {[%clk 0:02:28]}  fxg3+ {[%clk 0:01:48]} 19. Nxg3 {[%clk 0:02:25]}  Bf7 {[%clk 0:01:44]} 20. Be3 {[%clk 0:02:11]}  b6 {[%clk 0:01:43]} 21. Qc2 {[%clk 0:02:02]}  Nb7 {[%clk 0:01:42]} 22. Qc6 {[%clk 0:02:00]}  Qe7 {[%clk 0:01:29]} 23. Ne4 {[%clk 0:01:53]}  Be8 {[%clk 0:01:23]} 24. Qc2 {[%clk 0:01:41]}  Nc5 {[%clk 0:01:20]} 25. Nxc5 {[%clk 0:01:40]}  bxc5 {[%clk 0:01:18]} 26. Qa4 {[%clk 0:01:32]}  Rb6 {[%clk 0:01:04]} 27. Bf3 {[%clk 0:01:16]}  Bd7 {[%clk 0:01:04]} 28. Rg1 {[%clk 0:01:08]}  Rfb8 {[%clk 0:01:00]} 29. Bg5 {[%clk 0:00:59]}  Qf7 {[%clk 0:00:54]} 30. Rg2 {[%clk 0:00:40]}  Bxb5 {[%clk 0:00:50]} 31. Qh4 {[%clk 0:00:38]}  Bxd3 {[%clk 0:00:44]} 32. Rxb6 {[%clk 0:00:36]}  Rxb6 {[%clk 0:00:40]} 33. Bd8 {[%clk 0:00:28]}  e4 {[%clk 0:00:34]} 34. Bxe4 {[%clk 0:00:16]}  Be5+ {[%clk 0:00:32]} 35. Kh1 {[%clk 0:00:14]}  Rb1+ {[%clk 0:00:29]} 36. Rg1 {[%clk 0:00:14]}  Bxe4+ {[%clk 0:00:23]} 37. Qxe4 {[%clk 0:00:13]}  Qxf2 {[%clk 0:00:23]} 38. Qg2 {[%clk 0:00:08]}  Rxg1+ {[%clk 0:00:22]} 39. Qxg1 {[%clk 0:00:09]}  Qxe2 {[%clk 0:00:18]} 40. Bxc7 {[%clk 0:00:09]}  c4 {[%clk 0:00:17]} 41. Qg2 {[%clk 0:00:07]}  Qe1+ {[%clk 0:00:16]} 42. Qg1 {[%clk 0:00:07]}  Qe4+ {[%clk 0:00:14]} 43. Qg2 {[%clk 0:00:07]}  Qb1+ {[%clk 0:00:14]} 44. Qg1 {[%clk 0:00:07]}  Qd3 {[%clk 0:00:13]} 45. Qg2 {[%clk 0:00:02]}  c3 {[%clk 0:00:12]} 0-1


[Site "https://www.chess.com"]

[Event "Titled Tuesday Blitz May 16 Early 2023"]
[White "Skliarov, Viktor"]
[Black "I_KID_you_not"]
[WhiteFideId "14106736"]
[WhiteElo "2317"]
[BlackElo "2324"]
[Result "1/2-1/2"]
[Round "04"]
[TimeControl "180+2"]
[Date "2023.05.16"]
[WhiteClock "0:00:19"]
[BlackClock "0:00:30"]

1. e4 {[%clk 0:03:00]}  c5 {[%clk 0:02:59]} 2. Nf3 {[%clk 0:03:00]}  Nc6 {[%clk 0:02:59]} 3. Bb5 {[%clk 0:02:59]}  Nf6 {[%clk 0:02:58]} 4. Bxc6 {[%clk 0:02:58]}  dxc6 {[%clk 0:02:58]} 5. d3 {[%clk 0:02:57]}  g6 {[%clk 0:02:58]} 6. h3 {[%clk 0:02:54]}  Bg7 {[%clk 0:02:58]} 7. O-O {[%clk 0:02:54]}  O-O {[%clk 0:02:57]} 8. Nbd2 {[%clk 0:02:50]}  b6 {[%clk 0:02:54]} 9. a4 {[%clk 0:02:48]}  a5 {[%clk 0:02:51]} 10. Nc4 {[%clk 0:02:48]}  Ba6 {[%clk 0:02:40]} 11. Ne3 {[%clk 0:02:44]}  Qc7 {[%clk 0:02:31]} 12. Bd2 {[%clk 0:02:29]}  e5 {[%clk 0:02:28]} 13. b3 {[%clk 0:02:14]}  Nh5 {[%clk 0:02:23]} 14. Nc4 {[%clk 0:02:11]}  Rae8 {[%clk 0:02:09]} 15. Re1 {[%clk 0:02:04]}  Nf4 {[%clk 0:02:02]} 16. Rb1 {[%clk 0:01:43]}  Ne6 {[%clk 0:01:39]} 17. Qc1 {[%clk 0:01:29]}  Nd4 {[%clk 0:01:33]} 18. Nxd4 {[%clk 0:01:29]}  cxd4 {[%clk 0:01:33]} 19. Bh6 {[%clk 0:01:24]}  f6 {[%clk 0:01:27]} 20. Bxg7 {[%clk 0:01:22]}  Kxg7 {[%clk 0:01:26]} 21. Rf1 {[%clk 0:01:17]}  b5 {[%clk 0:01:24]} 22. Nb2 {[%clk 0:01:00]}  f5 {[%clk 0:01:18]} 23. exf5 {[%clk 0:00:53]}  Rxf5 {[%clk 0:01:14]} 24. Qd2 {[%clk 0:00:54]}  b4 {[%clk 0:01:03]} 25. Rbe1 {[%clk 0:00:48]}  c5 {[%clk 0:01:00]} 26. f4 {[%clk 0:00:42]}  Ref8 {[%clk 0:00:50]} 27. fxe5 {[%clk 0:00:41]}  Rxf1+ {[%clk 0:00:48]} 28. Rxf1 {[%clk 0:00:42]}  Rxf1+ {[%clk 0:00:48]} 29. Kxf1 {[%clk 0:00:43]}  Qxe5 {[%clk 0:00:48]} 30. Nc4 {[%clk 0:00:40]}  Bxc4 {[%clk 0:00:48]} 31. bxc4 {[%clk 0:00:41]}  h5 {[%clk 0:00:42]} 32. Kf2 {[%clk 0:00:26]}  h4 {[%clk 0:00:40]} 33. Qe2 {[%clk 0:00:26]}  Qg3+ {[%clk 0:00:37]} 34. Kg1 {[%clk 0:00:24]}  Qf4 {[%clk 0:00:32]} 35. Qe7+ {[%clk 0:00:23]}  Kh6 {[%clk 0:00:32]} 36. Qxc5 {[%clk 0:00:19]}  Qc1+ {[%clk 0:00:30]} 37. Kh2 {[%clk 0:00:19]}  Qf4+ {[%clk 0:00:30]} 38. Kg1 {[%clk 0:00:18]}  Qc1+ {[%clk 0:00:30]} 39. Kh2 {[%clk 0:00:19]}  Qf4+ {[%clk 0:00:30]} 40. Kg1 {[%clk 0:00:19]} 1/2-1/2


[Site "https://www.chess.com"]

[Event "Titled Tuesday Blitz May 16 Early 2023"]
[White "Buscar, Michael"]
[Black "Alex_Sahakyan2006"]
[WhiteFideId "2603616"]
[WhiteElo "2010"]
[BlackElo "2643"]
[Result "0-1"]
[Round "04"]
[TimeControl "180+2"]
[Date "2023.05.16"]
[WhiteClock "0:00:00"]
[BlackClock "0:00:34"]

1. d4 {[%clk 0:02:34]}  Nf6 {[%clk 0:02:58]} 2. c4 {[%clk 0:02:34]}  c5 {[%clk 0:02:58]} 3. d5 {[%clk 0:02:33]}  b5 {[%clk 0:02:58]} 4. cxb5 {[%clk 0:02:33]}  a6 {[%clk 0:02:58]} 5. bxa6 {[%clk 0:02:33]}  e6 {[%clk 0:02:57]} 6. dxe6 {[%clk 0:02:30]}  fxe6 {[%clk 0:02:52]} 7. g3 {[%clk 0:02:29]}  d5 {[%clk 0:02:50]} 8. Nf3 {[%clk 0:02:25]}  Bxa6 {[%clk 0:02:46]} 9. Bh3 {[%clk 0:02:24]}  Qb6 {[%clk 0:02:33]} 10. O-O {[%clk 0:02:23]}  Be7 {[%clk 0:02:32]} 11. Ng5 {[%clk 0:02:13]}  Bc8 {[%clk 0:02:23]} 12. b3 {[%clk 0:02:03]}  h6 {[%clk 0:02:19]} 13. Nf3 {[%clk 0:02:03]}  O-O {[%clk 0:02:16]} 14. Bb2 {[%clk 0:02:03]}  d4 {[%clk 0:02:15]} 15. Nbd2 {[%clk 0:02:02]}  Ba6 {[%clk 0:01:57]} 16. Ne5 {[%clk 0:01:58]}  Nbd7 {[%clk 0:01:52]} 17. Ndc4 {[%clk 0:01:22]}  Bxc4 {[%clk 0:01:34]} 18. Nxc4 {[%clk 0:01:22]}  Qa6 {[%clk 0:01:34]} 19. e3 {[%clk 0:01:16]}  e5 {[%clk 0:01:30]} 20. Re1 {[%clk 0:01:01]}  Rae8 {[%clk 0:01:14]} 21. exd4 {[%clk 0:00:40]}  cxd4 {[%clk 0:01:15]} 22. Nxe5 {[%clk 0:00:35]}  Bb4 {[%clk 0:01:15]} 23. Nxd7 {[%clk 0:00:26]}  Rxe1+ {[%clk 0:01:14]} 24. Qxe1 {[%clk 0:00:26]}  Bxe1 {[%clk 0:01:14]} 25. Nxf8 {[%clk 0:00:26]}  Qe2 {[%clk 0:01:11]} 26. Bxd4 {[%clk 0:00:16]}  Kxf8 {[%clk 0:01:11]} 27. Bf1 {[%clk 0:00:16]}  Qe4 {[%clk 0:01:09]} 28. Bc5+ {[%clk 0:00:14]}  Kg8 {[%clk 0:01:07]} 29. a4 {[%clk 0:00:13]}  Ng4 {[%clk 0:00:58]} 30. Rc1 {[%clk 0:00:08]}  Ne5 {[%clk 0:00:47]} 31. Bg2 {[%clk 0:00:05]}  Qe2 {[%clk 0:00:48]} 32. Bd4 {[%clk 0:00:04]}  Nd3 {[%clk 0:00:45]} 33. Rc8+ {[%clk 0:00:03]}  Kh7 {[%clk 0:00:46]} 34. Rf8 {[%clk 0:00:02]}  Bb4 {[%clk 0:00:44]} 35. Rf7 {[%clk 0:00:01]}  Qd1+ {[%clk 0:00:41]} 36. Bf1 {[%clk 0:00:01]}  Ne1 {[%clk 0:00:31]} 37. Rxg7+ {[%clk 0:00:01]}  Kh8 {[%clk 0:00:31]} 38. Rd7+ {[%clk 0:00:01]}  Qxd4 {[%clk 0:00:32]} 39. Rxd4 {[%clk 0:00:01]}  Nf3+ {[%clk 0:00:33]} 40. Kg2 {[%clk 0:00:01]}  Nxd4 {[%clk 0:00:34]} 41. Bc4 {[%clk 0:00:00]}  Kg7 {[%clk 0:00:34]} 0-1


[Site "https://www.chess.com"]

[Event "Titled Tuesday Blitz May 16 Early 2023"]
[White "Korchmar, Vasiliy"]
[Black "Lesbekova, Assel"]
[WhiteFideId "24131750"]
[BlackFideId "13713248"]
[WhiteElo "2370"]
[BlackElo "1805"]
[Result "0-1"]
[Round "04"]
[TimeControl "180+2"]
[Date "2023.05.16"]
[WhiteClock "0:00:00"]
[BlackClock "0:00:07"]

1. e4 {[%clk 0:03:00]}  c5 {[%clk 0:02:58]} 2. Nf3 {[%clk 0:03:01]}  Nc6 {[%clk 0:02:57]} 3. d4 {[%clk 0:03:01]}  cxd4 {[%clk 0:02:58]} 4. Nxd4 {[%clk 0:03:02]}  e5 {[%clk 0:02:59]} 5. Nb5 {[%clk 0:03:01]}  d6 {[%clk 0:02:59]} 6. c4 {[%clk 0:03:00]}  Be7 {[%clk 0:02:59]} 7. Bd3 {[%clk 0:03:00]}  Be6 {[%clk 0:02:55]} 8. O-O {[%clk 0:02:59]}  Rc8 {[%clk 0:02:54]} 9. Be3 {[%clk 0:02:58]}  a6 {[%clk 0:02:47]} 10. N5c3 {[%clk 0:02:58]}  Nd4 {[%clk 0:02:44]} 11. Nd5 {[%clk 0:02:52]}  Nf6 {[%clk 0:02:36]} 12. Nbc3 {[%clk 0:02:49]}  Ng4 {[%clk 0:02:30]} 13. Nxe7 {[%clk 0:02:39]}  Qxe7 {[%clk 0:02:25]} 14. Bxd4 {[%clk 0:02:31]}  exd4 {[%clk 0:02:26]} 15. Nd5 {[%clk 0:02:32]}  Qh4 {[%clk 0:02:19]} 16. h3 {[%clk 0:02:30]}  Ne5 {[%clk 0:02:17]} 17. f4 {[%clk 0:02:16]}  Nxc4 {[%clk 0:01:51]} 18. Rc1 {[%clk 0:01:39]}  Nxb2 {[%clk 0:01:31]} 19. Rxc8+ {[%clk 0:01:28]}  Bxc8 {[%clk 0:01:30]} 20. Qc1 {[%clk 0:01:29]}  Nxd3 {[%clk 0:01:04]} 21. Qxc8+ {[%clk 0:01:29]}  Qd8 {[%clk 0:01:04]} 22. Nc7+ {[%clk 0:01:29]}  Ke7 {[%clk 0:01:04]} 23. Nd5+ {[%clk 0:01:29]}  Ke8 {[%clk 0:01:03]} 24. Qxb7 {[%clk 0:01:30]}  Nc5 {[%clk 0:00:57]} 25. Qb2 {[%clk 0:01:07]}  f6 {[%clk 0:00:38]} 26. Qxd4 {[%clk 0:01:03]}  Kf7 {[%clk 0:00:39]} 27. Qc4 {[%clk 0:00:42]}  Kf8 {[%clk 0:00:33]} 28. e5 {[%clk 0:00:38]}  Ne6 {[%clk 0:00:21]} 29. Nxf6 {[%clk 0:00:35]}  gxf6 {[%clk 0:00:20]} 30. Qxe6 {[%clk 0:00:34]}  Qe7 {[%clk 0:00:15]} 31. Qxd6 {[%clk 0:00:33]}  Qxd6 {[%clk 0:00:15]} 32. exd6 {[%clk 0:00:34]}  Ke8 {[%clk 0:00:13]} 33. Rb1 {[%clk 0:00:30]}  Kd7 {[%clk 0:00:13]} 34. Rb6 {[%clk 0:00:31]}  a5 {[%clk 0:00:11]} 35. f5 {[%clk 0:00:23]}  h6 {[%clk 0:00:11]} 36. Kf2 {[%clk 0:00:20]}  Rc8 {[%clk 0:00:10]} 37. Kf3 {[%clk 0:00:10]}  Rc2 {[%clk 0:00:09]} 38. a4 {[%clk 0:00:09]}  Ra2 {[%clk 0:00:09]} 39. Rb7+ {[%clk 0:00:08]}  Kxd6 {[%clk 0:00:09]} 40. Rh7 {[%clk 0:00:09]}  Rxa4 {[%clk 0:00:08]} 41. Rxh6 {[%clk 0:00:09]}  Ke5 {[%clk 0:00:08]} 42. g4 {[%clk 0:00:10]}  Ra3+ {[%clk 0:00:07]} 43. Kg2 {[%clk 0:00:10]}  a4 {[%clk 0:00:08]} 44. Rh8 {[%clk 0:00:10]}  Kf4 {[%clk 0:00:06]} 45. Rb8 {[%clk 0:00:07]}  Ra2+ {[%clk 0:00:06]} 46. Kf1 {[%clk 0:00:06]}  a3 {[%clk 0:00:07]} 47. Rb4+ {[%clk 0:00:06]}  Kg3 {[%clk 0:00:07]} 48. Rb3+ {[%clk 0:00:06]}  Kh4 {[%clk 0:00:07]} 49. Rb4 {[%clk 0:00:03]}  Rh2 {[%clk 0:00:06]} 50. Ra4 {[%clk 0:00:02]}  a2 {[%clk 0:00:06]} 51. Kg1 {[%clk 0:00:03]}  Rb2 {[%clk 0:00:06]} 52. Ra3 {[%clk 0:00:03]}  Rb1+ {[%clk 0:00:06]} 53. Kf2 {[%clk 0:00:00]}  a1=Q {[%clk 0:00:07]} 0-1


[Site "https://www.chess.com"]

[Event "Titled Tuesday Blitz May 16 Early 2023"]
[White "Bernabeu Lopez, Carlos Javier"]
[Black "Garrido, Denis"]
[WhiteFideId "2235366"]
[BlackFideId "601217"]
[WhiteElo "2344"]
[BlackElo "2280"]
[Result "0-1"]
[Round "04"]
[TimeControl "180+2"]
[Date "2023.05.16"]
[WhiteClock "0:02:00"]
[BlackClock "0:01:10"]

1. e4 {[%clk 0:03:00]}  e5 {[%clk 0:02:59]} 2. Nf3 {[%clk 0:02:59]}  Nc6 {[%clk 0:03:00]} 3. Bb5 {[%clk 0:02:59]}  a6 {[%clk 0:02:59]} 4. Ba4 {[%clk 0:02:59]}  Nf6 {[%clk 0:02:59]} 5. O-O {[%clk 0:02:58]}  b5 {[%clk 0:02:59]} 6. Bb3 {[%clk 0:02:58]}  Bc5 {[%clk 0:03:00]} 7. a4 {[%clk 0:02:56]}  Rb8 {[%clk 0:03:00]} 8. axb5 {[%clk 0:02:55]}  axb5 {[%clk 0:03:01]} 9. Nxe5 {[%clk 0:02:55]}  Nxe5 {[%clk 0:03:02]} 10. d4 {[%clk 0:02:55]}  Bxd4 {[%clk 0:03:02]} 11. Qxd4 {[%clk 0:02:56]}  d6 {[%clk 0:03:02]} 12. Bg5 {[%clk 0:02:46]}  h6 {[%clk 0:02:54]} 13. Bh4 {[%clk 0:02:42]}  c5 {[%clk 0:02:42]} 14. Qe3 {[%clk 0:02:38]}  O-O {[%clk 0:02:27]} 15. Nc3 {[%clk 0:02:38]}  Bb7 {[%clk 0:02:24]} 16. Bd5 {[%clk 0:02:37]}  Nxd5 {[%clk 0:02:20]} 17. Bxd8 {[%clk 0:02:34]}  Nxe3 {[%clk 0:02:20]} 18. fxe3 {[%clk 0:02:32]}  Rbxd8 {[%clk 0:02:18]} 19. Ra7 {[%clk 0:02:32]}  b4 {[%clk 0:02:09]} 20. Nd5 {[%clk 0:02:25]}  Bxd5 {[%clk 0:02:09]} 21. exd5 {[%clk 0:02:26]}  Nc4 {[%clk 0:02:09]} 22. e4 {[%clk 0:02:22]}  Nxb2 {[%clk 0:02:07]} 23. Kf2 {[%clk 0:02:19]}  Nc4 {[%clk 0:02:06]} 24. Ke2 {[%clk 0:02:15]}  f6 {[%clk 0:01:58]} 25. Rfa1 {[%clk 0:02:11]}  Rf7 {[%clk 0:01:58]} 26. Rxf7 {[%clk 0:02:11]}  Kxf7 {[%clk 0:01:58]} 27. Ra7+ {[%clk 0:02:12]}  Kg6 {[%clk 0:01:52]} 28. g4 {[%clk 0:02:12]}  Re8 {[%clk 0:01:48]} 29. Kf3 {[%clk 0:02:12]}  Nd2+ {[%clk 0:01:47]} 30. Ke3 {[%clk 0:02:11]}  Nxe4 {[%clk 0:01:46]} 31. Kf4 {[%clk 0:02:12]}  Nc3 {[%clk 0:01:45]} 32. h4 {[%clk 0:02:13]}  Nxd5+ {[%clk 0:01:44]} 33. Kg3 {[%clk 0:02:14]}  Re3+ {[%clk 0:01:44]} 34. Kf2 {[%clk 0:02:14]}  Re7 {[%clk 0:01:42]} 35. Ra6 {[%clk 0:02:13]}  Rd7 {[%clk 0:01:39]} 36. Kf3 {[%clk 0:02:13]}  h5 {[%clk 0:01:38]} 37. Kg3 {[%clk 0:02:12]}  hxg4 {[%clk 0:01:38]} 38. Kxg4 {[%clk 0:02:13]}  f5+ {[%clk 0:01:38]} 39. Kf3 {[%clk 0:02:13]}  Kh5 {[%clk 0:01:38]} 40. Ra1 {[%clk 0:02:13]}  Re7 {[%clk 0:01:36]} 41. Rh1 {[%clk 0:02:13]}  Re3+ {[%clk 0:01:36]} 42. Kf2 {[%clk 0:02:14]}  Rc3 {[%clk 0:01:36]} 43. Rd1 {[%clk 0:02:15]}  Rxc2+ {[%clk 0:01:36]} 44. Kf3 {[%clk 0:02:15]}  Nf6 {[%clk 0:01:34]} 45. Rxd6 {[%clk 0:02:16]}  Rc3+ {[%clk 0:01:35]} 46. Kf4 {[%clk 0:02:14]}  Kxh4 {[%clk 0:01:25]} 47. Rd1 {[%clk 0:02:11]}  b3 {[%clk 0:01:22]} 48. Rh1+ {[%clk 0:02:10]}  Rh3 {[%clk 0:01:22]} 49. Rg1 {[%clk 0:02:11]}  b2 {[%clk 0:01:19]} 50. Rb1 {[%clk 0:02:08]}  Rh2 {[%clk 0:01:18]} 51. Kxf5 {[%clk 0:02:09]}  c4 {[%clk 0:01:18]} 52. Re1 {[%clk 0:02:05]}  c3 {[%clk 0:01:16]} 53. Kf4 {[%clk 0:02:05]}  Rf2+ {[%clk 0:01:12]} 54. Ke3 {[%clk 0:02:05]}  Ng4+ {[%clk 0:01:10]} 55. Kd3 {[%clk 0:02:00]}  c2 {[%clk 0:01:10]} 0-1


[Site "https://www.chess.com"]